{"text_format":"1","workbook":"xlsx","n_sheets":2,"sheets":["PQ","Лист1"],"not_rendered":{"charts":0,"images":0,"macros":1,"external_links":0,"defined_names":1,"comments":0,"pivot_tables":0},"unopened":[],"bounds":{"document_bytes":16777216,"sheet_cells":100000,"rows_first":2000,"rows_last":500,"rows_between":2000,"halvings":0,"cell_chars":16384,"cell_head_chars":4096},"cells_cut":0,"cells_raw":0,"read":"whole","date_system":"1900"}

{"sheet":"PQ","index":0,"n_rows":166,"n_cols":3,"rows_kept":166,"cut":false,"hidden":false,"merged":[]}
["Столбец1",null,"Таблица2"]
["Маска_маска для волос",null,"Маска_маска для волос"]
["Маска_увлажняющая маска для волос",null,"Маска_маска для волос"]
["Маска_восстанавливающая маска для волос",null,"Маска_маска для волос"]
["Маска_Для роста волос",null,"Маска_увлажняющая маска для волос"]
["Маска_Маска для роста волос",null,"Маска_увлажняющая маска для волос"]
["Маска_против выпадения волос",null,"Маска_увлажняющая маска для волос"]
["Маска_маска против выпадения волос",null,"Маска_восстанавливающая маска для волос"]
["Маска_средство против выпадения волос",null,"Маска_восстанавливающая маска для волос"]
["Маска_от выпадения волос",null,"Маска_восстанавливающая маска для волос"]
["Маска_маска от выпадения волос",null,"Маска_Для роста волос"]
["Спрей_спрей для волос",null,"Маска_Для роста волос"]
["Спрей_спрей для волос термозащита",null,"Маска_Для роста волос"]
["Спрей_кондиционер для волос",null,"Маска_Маска для роста волос"]
["Спрей_бальзам для волос",null,"Маска_Маска для роста волос"]
["Спрей_бальзам для волос профессиональный",null,"Маска_Маска для роста волос"]
["Спрей_Для роста волос",null,"Маска_против выпадения волос"]
["Спрей_спрей для роста волос",null,"Маска_против выпадения волос"]
["Спрей_ против выпадения волос",null,"Маска_против выпадения волос"]
["Спрей_средство против выпадения волос",null,"Маска_маска против выпадения волос"]
["Спрей_ от выпадения волос",null,"Маска_маска против выпадения волос"]
["Спрей_спрей от выпадения волос",null,"Маска_маска против выпадения волос"]
["Шампунь_шампунь для волос",null,"Маска_средство против выпадения волос"]
["Шампунь_безсульфатный шампунь",null,"Маска_средство против выпадения волос"]
["Шампунь_шампунь от перхоти",null,"Маска_средство против выпадения волос"]
["Шампунь_шампунь для жирных волос",null,"Маска_от выпадения волос"]
["Шампунь_Для роста волос",null,"Маска_от выпадения волос"]
["Шампунь_шампунь для роста волос",null,"Маска_от выпадения волос"]
["Шампунь_ против выпадения волос",null,"Маска_маска от выпадения волос"]
["Шампунь_шампунь против выпадения волос",null,"Маска_маска от выпадения волос"]
["Шампунь_ от выпадения волос",null,"Маска_маска от выпадения волос"]
["Шампунь_шампунь от выпадения волос",null,"Спрей_спрей для волос"]
["Милли спрей_спрей для легкого расчесывания волос",null,"Спрей_спрей для волос"]
["Милли спрей_мягкий уход для волос",null,"Спрей_спрей для волос"]
["Милли спрей_термозащита для волос",null,"Спрей_спрей для волос термозащита"]
["Милли спрей_спрей для расчесывания волос",null,"Спрей_спрей для волос термозащита"]
["Милли спрей_спрей для объема волос",null,"Спрей_спрей для волос термозащита"]
["Милли спрей_спрей для волос термозащита",null,"Спрей_кондиционер для волос"]
["Милли спрей_сыворотка спрей для волос",null,"Спрей_кондиционер для волос"]
["Милли спрей_спрей для роста волос",null,"Спрей_кондиционер для волос"]
["Милли шампунь_шампунь глубокой очистки",null,"Спрей_бальзам для волос"]
["Милли шампунь_увлажняющий шампунь",null,"Спрей_бальзам для волос"]
["Милли шампунь_бережный уход для волос",null,"Спрей_бальзам для волос"]
["Милли шампунь_шампунь от сухости",null,"Спрей_бальзам для волос профессиональный"]
["Милли шампунь_шампунь для жирных волос",null,"Спрей_бальзам для волос профессиональный"]
["Шишки_Шишки",null,"Спрей_бальзам для волос профессиональный"]
["Шишки_шишки для поделок",null,"Спрей_Для роста волос"]
["Шишки_для поделок материалы",null,"Спрей_Для роста волос"]
["Маска_маска для лица тканевая черная",null,"Спрей_Для роста волос"]
["Маска_многоразовая тканевая маска",null,"Спрей_спрей для роста волос"]
["Маска_маска защитная тканевая",null,"Спрей_спрей для роста волос"]
["Маска_маска тканевая для лица защитная",null,"Спрей_спрей для роста волос"]
["Маска_маска черная многоразовая",null,"Спрей_ против выпадения волос"]
["Маска_маска одноразовая черная",null,"Спрей_ против выпадения волос"]
["Маска_повязка с серебром",null,"Спрей_ против выпадения волос"]
["Маска_повязка на лицо черная",null,"Спрей_средство против выпадения волос"]
[null,null,"Спрей_средство против выпадения волос"]
[null,null,"Спрей_средство против выпадения волос"]
[null,null,"Спрей_ от выпадения волос"]
[null,null,"Спрей_ от выпадения волос"]
[null,null,"Спрей_ от выпадения волос"]
[null,null,"Спрей_спрей от выпадения волос"]
[null,null,"Спрей_спрей от выпадения волос"]
[null,null,"Спрей_спрей от выпадения волос"]
[null,null,"Шампунь_шампунь для волос"]
[null,null,"Шампунь_шампунь для волос"]
[null,null,"Шампунь_шампунь для волос"]
[null,null,"Шампунь_безсульфатный шампунь"]
[null,null,"Шампунь_безсульфатный шампунь"]
[null,null,"Шампунь_безсульфатный шампунь"]
[null,null,"Шампунь_шампунь от перхоти"]
[null,null,"Шампунь_шампунь от перхоти"]
[null,null,"Шампунь_шампунь от перхоти"]
[null,null,"Шампунь_шампунь для жирных волос"]
[null,null,"Шампунь_шампунь для жирных волос"]
[null,null,"Шампунь_шампунь для жирных волос"]
[null,null,"Шампунь_Для роста волос"]
[null,null,"Шампунь_Для роста волос"]
[null,null,"Шампунь_Для роста волос"]
[null,null,"Шампунь_шампунь для роста волос"]
[null,null,"Шампунь_шампунь для роста волос"]
[null,null,"Шампунь_шампунь для роста волос"]
[null,null,"Шампунь_ против выпадения волос"]
[null,null,"Шампунь_ против выпадения волос"]
[null,null,"Шампунь_ против выпадения волос"]
[null,null,"Шампунь_шампунь против выпадения волос"]
[null,null,"Шампунь_шампунь против выпадения волос"]
[null,null,"Шампунь_шампунь против выпадения волос"]
[null,null,"Шампунь_ от выпадения волос"]
[null,null,"Шампунь_ от выпадения волос"]
[null,null,"Шампунь_ от выпадения волос"]
[null,null,"Шампунь_шампунь от выпадения волос"]
[null,null,"Шампунь_шампунь от выпадения волос"]
[null,null,"Шампунь_шампунь от выпадения волос"]
[null,null,"Милли спрей_спрей для легкого расчесывания волос"]
[null,null,"Милли спрей_спрей для легкого расчесывания волос"]
[null,null,"Милли спрей_спрей для легкого расчесывания волос"]
[null,null,"Милли спрей_мягкий уход для волос"]
[null,null,"Милли спрей_мягкий уход для волос"]
[null,null,"Милли спрей_мягкий уход для волос"]
[null,null,"Милли спрей_термозащита для волос"]
[null,null,"Милли спрей_термозащита для волос"]
[null,null,"Милли спрей_термозащита для волос"]
[null,null,"Милли спрей_спрей для расчесывания волос"]
[null,null,"Милли спрей_спрей для расчесывания волос"]
[null,null,"Милли спрей_спрей для расчесывания волос"]
[null,null,"Милли спрей_спрей для объема волос"]
[null,null,"Милли спрей_спрей для объема волос"]
[null,null,"Милли спрей_спрей для объема волос"]
[null,null,"Милли спрей_спрей для волос термозащита"]
[null,null,"Милли спрей_спрей для волос термозащита"]
[null,null,"Милли спрей_спрей для волос термозащита"]
[null,null,"Милли спрей_сыворотка спрей для волос"]
[null,null,"Милли спрей_сыворотка спрей для волос"]
[null,null,"Милли спрей_сыворотка спрей для волос"]
[null,null,"Милли спрей_спрей для роста волос"]
[null,null,"Милли спрей_спрей для роста волос"]
[null,null,"Милли спрей_спрей для роста волос"]
[null,null,"Милли шампунь_шампунь глубокой очистки"]
[null,null,"Милли шампунь_шампунь глубокой очистки"]
[null,null,"Милли шампунь_шампунь глубокой очистки"]
[null,null,"Милли шампунь_увлажняющий шампунь"]
[null,null,"Милли шампунь_увлажняющий шампунь"]
[null,null,"Милли шампунь_увлажняющий шампунь"]
[null,null,"Милли шампунь_бережный уход для волос"]
[null,null,"Милли шампунь_бережный уход для волос"]
[null,null,"Милли шампунь_бережный уход для волос"]
[null,null,"Милли шампунь_шампунь от сухости"]
[null,null,"Милли шампунь_шампунь от сухости"]
[null,null,"Милли шампунь_шампунь от сухости"]
[null,null,"Милли шампунь_шампунь для жирных волос"]
[null,null,"Милли шампунь_шампунь для жирных волос"]
[null,null,"Милли шампунь_шампунь для жирных волос"]
[null,null,"Шишки_Шишки"]
[null,null,"Шишки_Шишки"]
[null,null,"Шишки_Шишки"]
[null,null,"Шишки_шишки для поделок"]
[null,null,"Шишки_шишки для поделок"]
[null,null,"Шишки_шишки для поделок"]
[null,null,"Шишки_для поделок материалы"]
[null,null,"Шишки_для поделок материалы"]
[null,null,"Шишки_для поделок материалы"]
[null,null,"Маска_маска для лица тканевая черная"]
[null,null,"Маска_маска для лица тканевая черная"]
[null,null,"Маска_маска для лица тканевая черная"]
[null,null,"Маска_многоразовая тканевая маска"]
[null,null,"Маска_многоразовая тканевая маска"]
[null,null,"Маска_многоразовая тканевая маска"]
[null,null,"Маска_маска защитная тканевая"]
[null,null,"Маска_маска защитная тканевая"]
[null,null,"Маска_маска защитная тканевая"]
[null,null,"Маска_маска тканевая для лица защитная"]
[null,null,"Маска_маска тканевая для лица защитная"]
[null,null,"Маска_маска тканевая для лица защитная"]
[null,null,"Маска_маска черная многоразовая"]
[null,null,"Маска_маска черная многоразовая"]
[null,null,"Маска_маска черная многоразовая"]
[null,null,"Маска_маска одноразовая черная"]
[null,null,"Маска_маска одноразовая черная"]
[null,null,"Маска_маска одноразовая черная"]
[null,null,"Маска_повязка с серебром"]
[null,null,"Маска_повязка с серебром"]
[null,null,"Маска_повязка с серебром"]
[null,null,"Маска_повязка на лицо черная"]
[null,null,"Маска_повязка на лицо черная"]
[null,null,"Маска_повязка на лицо черная"]

{"sheet":"Лист1","index":1,"n_rows":165,"n_cols":11,"rows_kept":165,"cut":false,"hidden":false,"merged":[]}
["Маска_маска для волос",null,null,null,{"$f":"_xlfn.FILTERXML(\"<t><s>\"&SUBSTITUTE(_xlfn.TEXTJOIN(\"\",1,REPT(A1:A55&\"|\",3)),\"|\",\"</s><s>\")&\"</s></t>\",\"//s[node()]\")","v":"Маска_маска для волос"},null,{"$f":"INDEX(A:A,FLOOR(ROW(A3)/3,1))","v":"Маска_маска для волос"},null,{"$f":"INDEX(A:A,(ROW(A1)-1)/3+1)","v":"Маска_маска для волос"},null,{"$f":"OFFSET($A$1,FLOOR((ROW()-1)/3,1),0)","v":"Маска_маска для волос"}]
["Маска_увлажняющая маска для волос",null,null,null,"Маска_маска для волос",null,{"$f":"INDEX(A:A,FLOOR(ROW(A4)/3,1))","v":"Маска_маска для волос"},null,{"$f":"INDEX(A:A,(ROW(A2)-1)/3+1)","v":"Маска_маска для волос"},null,{"$f":"OFFSET($A$1,FLOOR((ROW()-1)/3,1),0)","v":"Маска_маска для волос"}]
["Маска_восстанавливающая маска для волос",null,null,null,"Маска_маска для волос",null,{"$f":"INDEX(A:A,FLOOR(ROW(A5)/3,1))","v":"Маска_маска для волос"},null,{"$f":"INDEX(A:A,(ROW(A3)-1)/3+1)","v":"Маска_маска для волос"},null,"Маска_маска для волос"]
["Маска_Для роста волос",null,null,null,"Маска_увлажняющая маска для волос",null,{"$f":"INDEX(A:A,FLOOR(ROW(A6)/3,1))","v":"Маска_увлажняющая маска для волос"},null,{"$f":"INDEX(A:A,(ROW(A4)-1)/3+1)","v":"Маска_увлажняющая маска для волос"},null,"Маска_увлажняющая маска для волос"]
["Маска_Маска для роста волос",null,null,null,"Маска_увлажняющая маска для волос",null,{"$f":"INDEX(A:A,FLOOR(ROW(A7)/3,1))","v":"Маска_увлажняющая маска для волос"},null,{"$f":"INDEX(A:A,(ROW(A5)-1)/3+1)","v":"Маска_увлажняющая маска для волос"},null,"Маска_увлажняющая маска для волос"]
["Маска_против выпадения волос",null,null,null,"Маска_увлажняющая маска для волос",null,{"$f":"INDEX(A:A,FLOOR(ROW(A8)/3,1))","v":"Маска_увлажняющая маска для волос"},null,{"$f":"INDEX(A:A,(ROW(A6)-1)/3+1)","v":"Маска_увлажняющая маска для волос"},null,"Маска_увлажняющая маска для волос"]
["Маска_маска против выпадения волос",null,null,null,"Маска_восстанавливающая маска для волос",null,{"$f":"INDEX(A:A,FLOOR(ROW(A9)/3,1))","v":"Маска_восстанавливающая маска для волос"},null,{"$f":"INDEX(A:A,(ROW(A7)-1)/3+1)","v":"Маска_восстанавливающая маска для волос"},null,"Маска_восстанавливающая маска для волос"]
["Маска_средство против выпадения волос",null,null,null,"Маска_восстанавливающая маска для волос",null,{"$f":"INDEX(A:A,FLOOR(ROW(A10)/3,1))","v":"Маска_восстанавливающая маска для волос"},null,{"$f":"INDEX(A:A,(ROW(A8)-1)/3+1)","v":"Маска_восстанавливающая маска для волос"},null,"Маска_восстанавливающая маска для волос"]
["Маска_от выпадения волос",null,null,null,"Маска_восстанавливающая маска для волос",null,{"$f":"INDEX(A:A,FLOOR(ROW(A11)/3,1))","v":"Маска_восстанавливающая маска для волос"},null,{"$f":"INDEX(A:A,(ROW(A9)-1)/3+1)","v":"Маска_восстанавливающая маска для волос"},null,"Маска_восстанавливающая маска для волос"]
["Маска_маска от выпадения волос",null,null,null,"Маска_Для роста волос",null,{"$f":"INDEX(A:A,FLOOR(ROW(A12)/3,1))","v":"Маска_Для роста волос"},null,{"$f":"INDEX(A:A,(ROW(A10)-1)/3+1)","v":"Маска_Для роста волос"},null,"Маска_Для роста волос"]
["Спрей_спрей для волос",null,null,null,"Маска_Для роста волос",null,{"$f":"INDEX(A:A,FLOOR(ROW(A13)/3,1))","v":"Маска_Для роста волос"},null,{"$f":"INDEX(A:A,(ROW(A11)-1)/3+1)","v":"Маска_Для роста волос"},null,"Маска_Для роста волос"]
["Спрей_спрей для волос термозащита",null,null,null,"Маска_Для роста волос",null,{"$f":"INDEX(A:A,FLOOR(ROW(A14)/3,1))","v":"Маска_Для роста волос"},null,{"$f":"INDEX(A:A,(ROW(A12)-1)/3+1)","v":"Маска_Для роста волос"},null,"Маска_Для роста волос"]
["Спрей_кондиционер для волос",null,null,null,"Маска_Маска для роста волос",null,{"$f":"INDEX(A:A,FLOOR(ROW(A15)/3,1))","v":"Маска_Маска для роста волос"},null,{"$f":"INDEX(A:A,(ROW(A13)-1)/3+1)","v":"Маска_Маска для роста волос"},null,"Маска_Маска для роста волос"]
["Спрей_бальзам для волос",null,null,null,"Маска_Маска для роста волос",null,{"$f":"INDEX(A:A,FLOOR(ROW(A16)/3,1))","v":"Маска_Маска для роста волос"},null,{"$f":"INDEX(A:A,(ROW(A14)-1)/3+1)","v":"Маска_Маска для роста волос"},null,"Маска_Маска для роста волос"]
["Спрей_бальзам для волос профессиональный",null,null,null,"Маска_Маска для роста волос",null,{"$f":"INDEX(A:A,FLOOR(ROW(A17)/3,1))","v":"Маска_Маска для роста волос"},null,{"$f":"INDEX(A:A,(ROW(A15)-1)/3+1)","v":"Маска_Маска для роста волос"},null,"Маска_Маска для роста волос"]
["Спрей_Для роста волос",null,null,null,"Маска_против выпадения волос",null,{"$f":"INDEX(A:A,FLOOR(ROW(A18)/3,1))","v":"Маска_против выпадения волос"},null,{"$f":"INDEX(A:A,(ROW(A16)-1)/3+1)","v":"Маска_против выпадения волос"},null,"Маска_против выпадения волос"]
["Спрей_спрей для роста волос",null,null,null,"Маска_против выпадения волос",null,{"$f":"INDEX(A:A,FLOOR(ROW(A19)/3,1))","v":"Маска_против выпадения волос"},null,{"$f":"INDEX(A:A,(ROW(A17)-1)/3+1)","v":"Маска_против выпадения волос"},null,"Маска_против выпадения волос"]
["Спрей_ против выпадения волос",null,null,null,"Маска_против выпадения волос",null,{"$f":"INDEX(A:A,FLOOR(ROW(A20)/3,1))","v":"Маска_против выпадения волос"},null,{"$f":"INDEX(A:A,(ROW(A18)-1)/3+1)","v":"Маска_против выпадения волос"},null,"Маска_против выпадения волос"]
["Спрей_средство против выпадения волос",null,null,null,"Маска_маска против выпадения волос",null,{"$f":"INDEX(A:A,FLOOR(ROW(A21)/3,1))","v":"Маска_маска против выпадения волос"},null,{"$f":"INDEX(A:A,(ROW(A19)-1)/3+1)","v":"Маска_маска против выпадения волос"},null,"Маска_маска против выпадения волос"]
["Спрей_ от выпадения волос",null,null,null,"Маска_маска против выпадения волос",null,{"$f":"INDEX(A:A,FLOOR(ROW(A22)/3,1))","v":"Маска_маска против выпадения волос"},null,{"$f":"INDEX(A:A,(ROW(A20)-1)/3+1)","v":"Маска_маска против выпадения волос"},null,"Маска_маска против выпадения волос"]
["Спрей_спрей от выпадения волос",null,null,null,"Маска_маска против выпадения волос",null,{"$f":"INDEX(A:A,FLOOR(ROW(A23)/3,1))","v":"Маска_маска против выпадения волос"},null,{"$f":"INDEX(A:A,(ROW(A21)-1)/3+1)","v":"Маска_маска против выпадения волос"},null,"Маска_маска против выпадения волос"]
["Шампунь_шампунь для волос",null,null,null,"Маска_средство против выпадения волос",null,{"$f":"INDEX(A:A,FLOOR(ROW(A24)/3,1))","v":"Маска_средство против выпадения волос"},null,{"$f":"INDEX(A:A,(ROW(A22)-1)/3+1)","v":"Маска_средство против выпадения волос"},null,"Маска_средство против выпадения волос"]
["Шампунь_безсульфатный шампунь",null,null,null,"Маска_средство против выпадения волос",null,{"$f":"INDEX(A:A,FLOOR(ROW(A25)/3,1))","v":"Маска_средство против выпадения волос"},null,{"$f":"INDEX(A:A,(ROW(A23)-1)/3+1)","v":"Маска_средство против выпадения волос"},null,"Маска_средство против выпадения волос"]
["Шампунь_шампунь от перхоти",null,null,null,"Маска_средство против выпадения волос",null,{"$f":"INDEX(A:A,FLOOR(ROW(A26)/3,1))","v":"Маска_средство против выпадения волос"},null,{"$f":"INDEX(A:A,(ROW(A24)-1)/3+1)","v":"Маска_средство против выпадения волос"},null,"Маска_средство против выпадения волос"]
["Шампунь_шампунь для жирных волос",null,null,null,"Маска_от выпадения волос",null,{"$f":"INDEX(A:A,FLOOR(ROW(A27)/3,1))","v":"Маска_от выпадения волос"},null,{"$f":"INDEX(A:A,(ROW(A25)-1)/3+1)","v":"Маска_от выпадения волос"},null,"Маска_от выпадения волос"]
["Шампунь_Для роста волос",null,null,null,"Маска_от выпадения волос",null,{"$f":"INDEX(A:A,FLOOR(ROW(A28)/3,1))","v":"Маска_от выпадения волос"},null,{"$f":"INDEX(A:A,(ROW(A26)-1)/3+1)","v":"Маска_от выпадения волос"},null,"Маска_от выпадения волос"]
["Шампунь_шампунь для роста волос",null,null,null,"Маска_от выпадения волос",null,{"$f":"INDEX(A:A,FLOOR(ROW(A29)/3,1))","v":"Маска_от выпадения волос"},null,{"$f":"INDEX(A:A,(ROW(A27)-1)/3+1)","v":"Маска_от выпадения волос"},null,"Маска_от выпадения волос"]
["Шампунь_ против выпадения волос",null,null,null,"Маска_маска от выпадения волос",null,{"$f":"INDEX(A:A,FLOOR(ROW(A30)/3,1))","v":"Маска_маска от выпадения волос"},null,{"$f":"INDEX(A:A,(ROW(A28)-1)/3+1)","v":"Маска_маска от выпадения волос"},null,"Маска_маска от выпадения волос"]
["Шампунь_шампунь против выпадения волос",null,null,null,"Маска_маска от выпадения волос",null,{"$f":"INDEX(A:A,FLOOR(ROW(A31)/3,1))","v":"Маска_маска от выпадения волос"},null,{"$f":"INDEX(A:A,(ROW(A29)-1)/3+1)","v":"Маска_маска от выпадения волос"},null,"Маска_маска от выпадения волос"]
["Шампунь_ от выпадения волос",null,null,null,"Маска_маска от выпадения волос",null,{"$f":"INDEX(A:A,FLOOR(ROW(A32)/3,1))","v":"Маска_маска от выпадения волос"},null,{"$f":"INDEX(A:A,(ROW(A30)-1)/3+1)","v":"Маска_маска от выпадения волос"},null,"Маска_маска от выпадения волос"]
["Шампунь_шампунь от выпадения волос",null,null,null,"Спрей_спрей для волос",null,{"$f":"INDEX(A:A,FLOOR(ROW(A33)/3,1))","v":"Спрей_спрей для волос"},null,{"$f":"INDEX(A:A,(ROW(A31)-1)/3+1)","v":"Спрей_спрей для волос"},null,"Спрей_спрей для волос"]
["Милли спрей_спрей для легкого расчесывания волос",null,null,null,"Спрей_спрей для волос",null,{"$f":"INDEX(A:A,FLOOR(ROW(A34)/3,1))","v":"Спрей_спрей для волос"},null,{"$f":"INDEX(A:A,(ROW(A32)-1)/3+1)","v":"Спрей_спрей для волос"},null,"Спрей_спрей для волос"]
["Милли спрей_мягкий уход для волос",null,null,null,"Спрей_спрей для волос",null,{"$f":"INDEX(A:A,FLOOR(ROW(A35)/3,1))","v":"Спрей_спрей для волос"},null,{"$f":"INDEX(A:A,(ROW(A33)-1)/3+1)","v":"Спрей_спрей для волос"},null,"Спрей_спрей для волос"]
["Милли спрей_термозащита для волос",null,null,null,"Спрей_спрей для волос термозащита",null,{"$f":"INDEX(A:A,FLOOR(ROW(A36)/3,1))","v":"Спрей_спрей для волос термозащита"},null,{"$f":"INDEX(A:A,(ROW(A34)-1)/3+1)","v":"Спрей_спрей для волос термозащита"},null,"Спрей_спрей для волос термозащита"]
["Милли спрей_спрей для расчесывания волос",null,null,null,"Спрей_спрей для волос термозащита",null,{"$f":"INDEX(A:A,FLOOR(ROW(A37)/3,1))","v":"Спрей_спрей для волос термозащита"},null,{"$f":"INDEX(A:A,(ROW(A35)-1)/3+1)","v":"Спрей_спрей для волос термозащита"},null,"Спрей_спрей для волос термозащита"]
["Милли спрей_спрей для объема волос",null,null,null,"Спрей_спрей для волос термозащита",null,{"$f":"INDEX(A:A,FLOOR(ROW(A38)/3,1))","v":"Спрей_спрей для волос термозащита"},null,{"$f":"INDEX(A:A,(ROW(A36)-1)/3+1)","v":"Спрей_спрей для волос термозащита"},null,"Спрей_спрей для волос термозащита"]
["Милли спрей_спрей для волос термозащита",null,null,null,"Спрей_кондиционер для волос",null,{"$f":"INDEX(A:A,FLOOR(ROW(A39)/3,1))","v":"Спрей_кондиционер для волос"},null,{"$f":"INDEX(A:A,(ROW(A37)-1)/3+1)","v":"Спрей_кондиционер для волос"},null,"Спрей_кондиционер для волос"]
["Милли спрей_сыворотка спрей для волос",null,null,null,"Спрей_кондиционер для волос",null,{"$f":"INDEX(A:A,FLOOR(ROW(A40)/3,1))","v":"Спрей_кондиционер для волос"},null,{"$f":"INDEX(A:A,(ROW(A38)-1)/3+1)","v":"Спрей_кондиционер для волос"},null,"Спрей_кондиционер для волос"]
["Милли спрей_спрей для роста волос",null,null,null,"Спрей_кондиционер для волос",null,{"$f":"INDEX(A:A,FLOOR(ROW(A41)/3,1))","v":"Спрей_кондиционер для волос"},null,{"$f":"INDEX(A:A,(ROW(A39)-1)/3+1)","v":"Спрей_кондиционер для волос"},null,"Спрей_кондиционер для волос"]
["Милли шампунь_шампунь глубокой очистки",null,null,null,"Спрей_бальзам для волос",null,{"$f":"INDEX(A:A,FLOOR(ROW(A42)/3,1))","v":"Спрей_бальзам для волос"},null,{"$f":"INDEX(A:A,(ROW(A40)-1)/3+1)","v":"Спрей_бальзам для волос"},null,"Спрей_бальзам для волос"]
["Милли шампунь_увлажняющий шампунь",null,null,null,"Спрей_бальзам для волос",null,{"$f":"INDEX(A:A,FLOOR(ROW(A43)/3,1))","v":"Спрей_бальзам для волос"},null,{"$f":"INDEX(A:A,(ROW(A41)-1)/3+1)","v":"Спрей_бальзам для волос"},null,"Спрей_бальзам для волос"]
["Милли шампунь_бережный уход для волос",null,null,null,"Спрей_бальзам для волос",null,{"$f":"INDEX(A:A,FLOOR(ROW(A44)/3,1))","v":"Спрей_бальзам для волос"},null,{"$f":"INDEX(A:A,(ROW(A42)-1)/3+1)","v":"Спрей_бальзам для волос"},null,"Спрей_бальзам для волос"]
["Милли шампунь_шампунь от сухости",null,null,null,"Спрей_бальзам для волос профессиональный",null,{"$f":"INDEX(A:A,FLOOR(ROW(A45)/3,1))","v":"Спрей_бальзам для волос профессиональный"},null,{"$f":"INDEX(A:A,(ROW(A43)-1)/3+1)","v":"Спрей_бальзам для волос профессиональный"},null,"Спрей_бальзам для волос профессиональный"]
["Милли шампунь_шампунь для жирных волос",null,null,null,"Спрей_бальзам для волос профессиональный",null,{"$f":"INDEX(A:A,FLOOR(ROW(A46)/3,1))","v":"Спрей_бальзам для волос профессиональный"},null,{"$f":"INDEX(A:A,(ROW(A44)-1)/3+1)","v":"Спрей_бальзам для волос профессиональный"},null,"Спрей_бальзам для волос профессиональный"]
["Шишки_Шишки",null,null,null,"Спрей_бальзам для волос профессиональный",null,{"$f":"INDEX(A:A,FLOOR(ROW(A47)/3,1))","v":"Спрей_бальзам для волос профессиональный"},null,{"$f":"INDEX(A:A,(ROW(A45)-1)/3+1)","v":"Спрей_бальзам для волос профессиональный"},null,"Спрей_бальзам для волос профессиональный"]
["Шишки_шишки для поделок",null,null,null,"Спрей_Для роста волос",null,{"$f":"INDEX(A:A,FLOOR(ROW(A48)/3,1))","v":"Спрей_Для роста волос"},null,{"$f":"INDEX(A:A,(ROW(A46)-1)/3+1)","v":"Спрей_Для роста волос"},null,"Спрей_Для роста волос"]
["Шишки_для поделок материалы",null,null,null,"Спрей_Для роста волос",null,{"$f":"INDEX(A:A,FLOOR(ROW(A49)/3,1))","v":"Спрей_Для роста волос"},null,{"$f":"INDEX(A:A,(ROW(A47)-1)/3+1)","v":"Спрей_Для роста волос"},null,"Спрей_Для роста волос"]
["Маска_маска для лица тканевая черная",null,null,null,"Спрей_Для роста волос",null,{"$f":"INDEX(A:A,FLOOR(ROW(A50)/3,1))","v":"Спрей_Для роста волос"},null,{"$f":"INDEX(A:A,(ROW(A48)-1)/3+1)","v":"Спрей_Для роста волос"},null,"Спрей_Для роста волос"]
["Маска_многоразовая тканевая маска",null,null,null,"Спрей_спрей для роста волос",null,{"$f":"INDEX(A:A,FLOOR(ROW(A51)/3,1))","v":"Спрей_спрей для роста волос"},null,{"$f":"INDEX(A:A,(ROW(A49)-1)/3+1)","v":"Спрей_спрей для роста волос"},null,"Спрей_спрей для роста волос"]
["Маска_маска защитная тканевая",null,null,null,"Спрей_спрей для роста волос",null,{"$f":"INDEX(A:A,FLOOR(ROW(A52)/3,1))","v":"Спрей_спрей для роста волос"},null,{"$f":"INDEX(A:A,(ROW(A50)-1)/3+1)","v":"Спрей_спрей для роста волос"},null,"Спрей_спрей для роста волос"]
["Маска_маска тканевая для лица защитная",null,null,null,"Спрей_спрей для роста волос",null,{"$f":"INDEX(A:A,FLOOR(ROW(A53)/3,1))","v":"Спрей_спрей для роста волос"},null,{"$f":"INDEX(A:A,(ROW(A51)-1)/3+1)","v":"Спрей_спрей для роста волос"},null,"Спрей_спрей для роста волос"]
["Маска_маска черная многоразовая",null,null,null,"Спрей_ против выпадения волос",null,{"$f":"INDEX(A:A,FLOOR(ROW(A54)/3,1))","v":"Спрей_ против выпадения волос"},null,{"$f":"INDEX(A:A,(ROW(A52)-1)/3+1)","v":"Спрей_ против выпадения волос"},null,"Спрей_ против выпадения волос"]
["Маска_маска одноразовая черная",null,null,null,"Спрей_ против выпадения волос",null,{"$f":"INDEX(A:A,FLOOR(ROW(A55)/3,1))","v":"Спрей_ против выпадения волос"},null,{"$f":"INDEX(A:A,(ROW(A53)-1)/3+1)","v":"Спрей_ против выпадения волос"},null,"Спрей_ против выпадения волос"]
["Маска_повязка с серебром",null,null,null,"Спрей_ против выпадения волос",null,{"$f":"INDEX(A:A,FLOOR(ROW(A56)/3,1))","v":"Спрей_ против выпадения волос"},null,{"$f":"INDEX(A:A,(ROW(A54)-1)/3+1)","v":"Спрей_ против выпадения волос"},null,"Спрей_ против выпадения волос"]
["Маска_повязка на лицо черная",null,null,null,"Спрей_средство против выпадения волос",null,{"$f":"INDEX(A:A,FLOOR(ROW(A57)/3,1))","v":"Спрей_средство против выпадения волос"},null,{"$f":"INDEX(A:A,(ROW(A55)-1)/3+1)","v":"Спрей_средство против выпадения волос"},null,"Спрей_средство против выпадения волос"]
[null,null,null,null,"Спрей_средство против выпадения волос",null,{"$f":"INDEX(A:A,FLOOR(ROW(A58)/3,1))","v":"Спрей_средство против выпадения волос"},null,{"$f":"INDEX(A:A,(ROW(A56)-1)/3+1)","v":"Спрей_средство против выпадения волос"},null,"Спрей_средство против выпадения волос"]
[null,null,null,null,"Спрей_средство против выпадения волос",null,{"$f":"INDEX(A:A,FLOOR(ROW(A59)/3,1))","v":"Спрей_средство против выпадения волос"},null,{"$f":"INDEX(A:A,(ROW(A57)-1)/3+1)","v":"Спрей_средство против выпадения волос"},null,"Спрей_средство против выпадения волос"]
[null,null,null,null,"Спрей_ от выпадения волос",null,{"$f":"INDEX(A:A,FLOOR(ROW(A60)/3,1))","v":"Спрей_ от выпадения волос"},null,{"$f":"INDEX(A:A,(ROW(A58)-1)/3+1)","v":"Спрей_ от выпадения волос"},null,"Спрей_ от выпадения волос"]
[null,null,null,null,"Спрей_ от выпадения волос",null,{"$f":"INDEX(A:A,FLOOR(ROW(A61)/3,1))","v":"Спрей_ от выпадения волос"},null,{"$f":"INDEX(A:A,(ROW(A59)-1)/3+1)","v":"Спрей_ от выпадения волос"},null,"Спрей_ от выпадения волос"]
[null,null,null,null,"Спрей_ от выпадения волос",null,{"$f":"INDEX(A:A,FLOOR(ROW(A62)/3,1))","v":"Спрей_ от выпадения волос"},null,{"$f":"INDEX(A:A,(ROW(A60)-1)/3+1)","v":"Спрей_ от выпадения волос"},null,"Спрей_ от выпадения волос"]
[null,null,null,null,"Спрей_спрей от выпадения волос",null,{"$f":"INDEX(A:A,FLOOR(ROW(A63)/3,1))","v":"Спрей_спрей от выпадения волос"},null,{"$f":"INDEX(A:A,(ROW(A61)-1)/3+1)","v":"Спрей_спрей от выпадения волос"},null,"Спрей_спрей от выпадения волос"]
[null,null,null,null,"Спрей_спрей от выпадения волос",null,{"$f":"INDEX(A:A,FLOOR(ROW(A64)/3,1))","v":"Спрей_спрей от выпадения волос"},null,{"$f":"INDEX(A:A,(ROW(A62)-1)/3+1)","v":"Спрей_спрей от выпадения волос"},null,"Спрей_спрей от выпадения волос"]
[null,null,null,null,"Спрей_спрей от выпадения волос",null,{"$f":"INDEX(A:A,FLOOR(ROW(A65)/3,1))","v":"Спрей_спрей от выпадения волос"},null,{"$f":"INDEX(A:A,(ROW(A63)-1)/3+1)","v":"Спрей_спрей от выпадения волос"},null,"Спрей_спрей от выпадения волос"]
[null,null,null,null,"Шампунь_шампунь для волос",null,{"$f":"INDEX(A:A,FLOOR(ROW(A66)/3,1))","v":"Шампунь_шампунь для волос"},null,{"$f":"INDEX(A:A,(ROW(A64)-1)/3+1)","v":"Шампунь_шампунь для волос"},null,"Шампунь_шампунь для волос"]
[null,null,null,null,"Шампунь_шампунь для волос",null,{"$f":"INDEX(A:A,FLOOR(ROW(A67)/3,1))","v":"Шампунь_шампунь для волос"},null,{"$f":"INDEX(A:A,(ROW(A65)-1)/3+1)","v":"Шампунь_шампунь для волос"},null,"Шампунь_шампунь для волос"]
[null,null,null,null,"Шампунь_шампунь для волос",null,{"$f":"INDEX(A:A,FLOOR(ROW(A68)/3,1))","v":"Шампунь_шампунь для волос"},null,{"$f":"INDEX(A:A,(ROW(A66)-1)/3+1)","v":"Шампунь_шампунь для волос"},null,{"$f":"OFFSET($A$1,FLOOR((ROW()-1)/3,1),0)","v":"Шампунь_шампунь для волос"}]
[null,null,null,null,"Шампунь_безсульфатный шампунь",null,{"$f":"INDEX(A:A,FLOOR(ROW(A69)/3,1))","v":"Шампунь_безсульфатный шампунь"},null,{"$f":"INDEX(A:A,(ROW(A67)-1)/3+1)","v":"Шампунь_безсульфатный шампунь"},null,"Шампунь_безсульфатный шампунь"]
[null,null,null,null,"Шампунь_безсульфатный шампунь",null,{"$f":"INDEX(A:A,FLOOR(ROW(A70)/3,1))","v":"Шампунь_безсульфатный шампунь"},null,{"$f":"INDEX(A:A,(ROW(A68)-1)/3+1)","v":"Шампунь_безсульфатный шампунь"},null,"Шампунь_безсульфатный шампунь"]
[null,null,null,null,"Шампунь_безсульфатный шампунь",null,{"$f":"INDEX(A:A,FLOOR(ROW(A71)/3,1))","v":"Шампунь_безсульфатный шампунь"},null,{"$f":"INDEX(A:A,(ROW(A69)-1)/3+1)","v":"Шампунь_безсульфатный шампунь"},null,"Шампунь_безсульфатный шампунь"]
[null,null,null,null,"Шампунь_шампунь от перхоти",null,{"$f":"INDEX(A:A,FLOOR(ROW(A72)/3,1))","v":"Шампунь_шампунь от перхоти"},null,{"$f":"INDEX(A:A,(ROW(A70)-1)/3+1)","v":"Шампунь_шампунь от перхоти"},null,"Шампунь_шампунь от перхоти"]
[null,null,null,null,"Шампунь_шампунь от перхоти",null,{"$f":"INDEX(A:A,FLOOR(ROW(A73)/3,1))","v":"Шампунь_шампунь от перхоти"},null,{"$f":"INDEX(A:A,(ROW(A71)-1)/3+1)","v":"Шампунь_шампунь от перхоти"},null,"Шампунь_шампунь от перхоти"]
[null,null,null,null,"Шампунь_шампунь от перхоти",null,{"$f":"INDEX(A:A,FLOOR(ROW(A74)/3,1))","v":"Шампунь_шампунь от перхоти"},null,{"$f":"INDEX(A:A,(ROW(A72)-1)/3+1)","v":"Шампунь_шампунь от перхоти"},null,"Шампунь_шампунь от перхоти"]
[null,null,null,null,"Шампунь_шампунь для жирных волос",null,{"$f":"INDEX(A:A,FLOOR(ROW(A75)/3,1))","v":"Шампунь_шампунь для жирных волос"},null,{"$f":"INDEX(A:A,(ROW(A73)-1)/3+1)","v":"Шампунь_шампунь для жирных волос"},null,"Шампунь_шампунь для жирных волос"]
[null,null,null,null,"Шампунь_шампунь для жирных волос",null,{"$f":"INDEX(A:A,FLOOR(ROW(A76)/3,1))","v":"Шампунь_шампунь для жирных волос"},null,{"$f":"INDEX(A:A,(ROW(A74)-1)/3+1)","v":"Шампунь_шампунь для жирных волос"},null,"Шампунь_шампунь для жирных волос"]
[null,null,null,null,"Шампунь_шампунь для жирных волос",null,{"$f":"INDEX(A:A,FLOOR(ROW(A77)/3,1))","v":"Шампунь_шампунь для жирных волос"},null,{"$f":"INDEX(A:A,(ROW(A75)-1)/3+1)","v":"Шампунь_шампунь для жирных волос"},null,"Шампунь_шампунь для жирных волос"]
[null,null,null,null,"Шампунь_Для роста волос",null,{"$f":"INDEX(A:A,FLOOR(ROW(A78)/3,1))","v":"Шампунь_Для роста волос"},null,{"$f":"INDEX(A:A,(ROW(A76)-1)/3+1)","v":"Шампунь_Для роста волос"},null,"Шампунь_Для роста волос"]
[null,null,null,null,"Шампунь_Для роста волос",null,{"$f":"INDEX(A:A,FLOOR(ROW(A79)/3,1))","v":"Шампунь_Для роста волос"},null,{"$f":"INDEX(A:A,(ROW(A77)-1)/3+1)","v":"Шампунь_Для роста волос"},null,"Шампунь_Для роста волос"]
[null,null,null,null,"Шампунь_Для роста волос",null,{"$f":"INDEX(A:A,FLOOR(ROW(A80)/3,1))","v":"Шампунь_Для роста волос"},null,{"$f":"INDEX(A:A,(ROW(A78)-1)/3+1)","v":"Шампунь_Для роста волос"},null,"Шампунь_Для роста волос"]
[null,null,null,null,"Шампунь_шампунь для роста волос",null,{"$f":"INDEX(A:A,FLOOR(ROW(A81)/3,1))","v":"Шампунь_шампунь для роста волос"},null,{"$f":"INDEX(A:A,(ROW(A79)-1)/3+1)","v":"Шампунь_шампунь для роста волос"},null,"Шампунь_шампунь для роста волос"]
[null,null,null,null,"Шампунь_шампунь для роста волос",null,{"$f":"INDEX(A:A,FLOOR(ROW(A82)/3,1))","v":"Шампунь_шампунь для роста волос"},null,{"$f":"INDEX(A:A,(ROW(A80)-1)/3+1)","v":"Шампунь_шампунь для роста волос"},null,"Шампунь_шампунь для роста волос"]
[null,null,null,null,"Шампунь_шампунь для роста волос",null,{"$f":"INDEX(A:A,FLOOR(ROW(A83)/3,1))","v":"Шампунь_шампунь для роста волос"},null,{"$f":"INDEX(A:A,(ROW(A81)-1)/3+1)","v":"Шампунь_шампунь для роста волос"},null,"Шампунь_шампунь для роста волос"]
[null,null,null,null,"Шампунь_ против выпадения волос",null,{"$f":"INDEX(A:A,FLOOR(ROW(A84)/3,1))","v":"Шампунь_ против выпадения волос"},null,{"$f":"INDEX(A:A,(ROW(A82)-1)/3+1)","v":"Шампунь_ против выпадения волос"},null,"Шампунь_ против выпадения волос"]
[null,null,null,null,"Шампунь_ против выпадения волос",null,{"$f":"INDEX(A:A,FLOOR(ROW(A85)/3,1))","v":"Шампунь_ против выпадения волос"},null,{"$f":"INDEX(A:A,(ROW(A83)-1)/3+1)","v":"Шампунь_ против выпадения волос"},null,"Шампунь_ против выпадения волос"]
[null,null,null,null,"Шампунь_ против выпадения волос",null,{"$f":"INDEX(A:A,FLOOR(ROW(A86)/3,1))","v":"Шампунь_ против выпадения волос"},null,{"$f":"INDEX(A:A,(ROW(A84)-1)/3+1)","v":"Шампунь_ против выпадения волос"},null,"Шампунь_ против выпадения волос"]
[null,null,null,null,"Шампунь_шампунь против выпадения волос",null,{"$f":"INDEX(A:A,FLOOR(ROW(A87)/3,1))","v":"Шампунь_шампунь против выпадения волос"},null,{"$f":"INDEX(A:A,(ROW(A85)-1)/3+1)","v":"Шампунь_шампунь против выпадения волос"},null,"Шампунь_шампунь против выпадения волос"]
[null,null,null,null,"Шампунь_шампунь против выпадения волос",null,{"$f":"INDEX(A:A,FLOOR(ROW(A88)/3,1))","v":"Шампунь_шампунь против выпадения волос"},null,{"$f":"INDEX(A:A,(ROW(A86)-1)/3+1)","v":"Шампунь_шампунь против выпадения волос"},null,"Шампунь_шампунь против выпадения волос"]
[null,null,null,null,"Шампунь_шампунь против выпадения волос",null,{"$f":"INDEX(A:A,FLOOR(ROW(A89)/3,1))","v":"Шампунь_шампунь против выпадения волос"},null,{"$f":"INDEX(A:A,(ROW(A87)-1)/3+1)","v":"Шампунь_шампунь против выпадения волос"},null,"Шампунь_шампунь против выпадения волос"]
[null,null,null,null,"Шампунь_ от выпадения волос",null,{"$f":"INDEX(A:A,FLOOR(ROW(A90)/3,1))","v":"Шампунь_ от выпадения волос"},null,{"$f":"INDEX(A:A,(ROW(A88)-1)/3+1)","v":"Шампунь_ от выпадения волос"},null,"Шампунь_ от выпадения волос"]
[null,null,null,null,"Шампунь_ от выпадения волос",null,{"$f":"INDEX(A:A,FLOOR(ROW(A91)/3,1))","v":"Шампунь_ от выпадения волос"},null,{"$f":"INDEX(A:A,(ROW(A89)-1)/3+1)","v":"Шампунь_ от выпадения волос"},null,"Шампунь_ от выпадения волос"]
[null,null,null,null,"Шампунь_ от выпадения волос",null,{"$f":"INDEX(A:A,FLOOR(ROW(A92)/3,1))","v":"Шампунь_ от выпадения волос"},null,{"$f":"INDEX(A:A,(ROW(A90)-1)/3+1)","v":"Шампунь_ от выпадения волос"},null,"Шампунь_ от выпадения волос"]
[null,null,null,null,"Шампунь_шампунь от выпадения волос",null,{"$f":"INDEX(A:A,FLOOR(ROW(A93)/3,1))","v":"Шампунь_шампунь от выпадения волос"},null,{"$f":"INDEX(A:A,(ROW(A91)-1)/3+1)","v":"Шампунь_шампунь от выпадения волос"},null,"Шампунь_шампунь от выпадения волос"]
[null,null,null,null,"Шампунь_шампунь от выпадения волос",null,{"$f":"INDEX(A:A,FLOOR(ROW(A94)/3,1))","v":"Шампунь_шампунь от выпадения волос"},null,{"$f":"INDEX(A:A,(ROW(A92)-1)/3+1)","v":"Шампунь_шампунь от выпадения волос"},null,"Шампунь_шампунь от выпадения волос"]
[null,null,null,null,"Шампунь_шампунь от выпадения волос",null,{"$f":"INDEX(A:A,FLOOR(ROW(A95)/3,1))","v":"Шампунь_шампунь от выпадения волос"},null,{"$f":"INDEX(A:A,(ROW(A93)-1)/3+1)","v":"Шампунь_шампунь от выпадения волос"},null,"Шампунь_шампунь от выпадения волос"]
[null,null,null,null,"Милли спрей_спрей для легкого расчесывания волос",null,{"$f":"INDEX(A:A,FLOOR(ROW(A96)/3,1))","v":"Милли спрей_спрей для легкого расчесывания волос"},null,{"$f":"INDEX(A:A,(ROW(A94)-1)/3+1)","v":"Милли спрей_спрей для легкого расчесывания волос"},null,"Милли спрей_спрей для легкого расчесывания волос"]
[null,null,null,null,"Милли спрей_спрей для легкого расчесывания волос",null,{"$f":"INDEX(A:A,FLOOR(ROW(A97)/3,1))","v":"Милли спрей_спрей для легкого расчесывания волос"},null,{"$f":"INDEX(A:A,(ROW(A95)-1)/3+1)","v":"Милли спрей_спрей для легкого расчесывания волос"},null,"Милли спрей_спрей для легкого расчесывания волос"]
[null,null,null,null,"Милли спрей_спрей для легкого расчесывания волос",null,{"$f":"INDEX(A:A,FLOOR(ROW(A98)/3,1))","v":"Милли спрей_спрей для легкого расчесывания волос"},null,{"$f":"INDEX(A:A,(ROW(A96)-1)/3+1)","v":"Милли спрей_спрей для легкого расчесывания волос"},null,"Милли спрей_спрей для легкого расчесывания волос"]
[null,null,null,null,"Милли спрей_мягкий уход для волос",null,{"$f":"INDEX(A:A,FLOOR(ROW(A99)/3,1))","v":"Милли спрей_мягкий уход для волос"},null,{"$f":"INDEX(A:A,(ROW(A97)-1)/3+1)","v":"Милли спрей_мягкий уход для волос"},null,"Милли спрей_мягкий уход для волос"]
[null,null,null,null,"Милли спрей_мягкий уход для волос",null,{"$f":"INDEX(A:A,FLOOR(ROW(A100)/3,1))","v":"Милли спрей_мягкий уход для волос"},null,{"$f":"INDEX(A:A,(ROW(A98)-1)/3+1)","v":"Милли спрей_мягкий уход для волос"},null,"Милли спрей_мягкий уход для волос"]
[null,null,null,null,"Милли спрей_мягкий уход для волос",null,{"$f":"INDEX(A:A,FLOOR(ROW(A101)/3,1))","v":"Милли спрей_мягкий уход для волос"},null,{"$f":"INDEX(A:A,(ROW(A99)-1)/3+1)","v":"Милли спрей_мягкий уход для волос"},null,"Милли спрей_мягкий уход для волос"]
[null,null,null,null,"Милли спрей_термозащита для волос",null,{"$f":"INDEX(A:A,FLOOR(ROW(A102)/3,1))","v":"Милли спрей_термозащита для волос"},null,{"$f":"INDEX(A:A,(ROW(A100)-1)/3+1)","v":"Милли спрей_термозащита для волос"},null,"Милли спрей_термозащита для волос"]
[null,null,null,null,"Милли спрей_термозащита для волос",null,{"$f":"INDEX(A:A,FLOOR(ROW(A103)/3,1))","v":"Милли спрей_термозащита для волос"},null,{"$f":"INDEX(A:A,(ROW(A101)-1)/3+1)","v":"Милли спрей_термозащита для волос"},null,"Милли спрей_термозащита для волос"]
[null,null,null,null,"Милли спрей_термозащита для волос",null,{"$f":"INDEX(A:A,FLOOR(ROW(A104)/3,1))","v":"Милли спрей_термозащита для волос"},null,{"$f":"INDEX(A:A,(ROW(A102)-1)/3+1)","v":"Милли спрей_термозащита для волос"},null,"Милли спрей_термозащита для волос"]
[null,null,null,null,"Милли спрей_спрей для расчесывания волос",null,{"$f":"INDEX(A:A,FLOOR(ROW(A105)/3,1))","v":"Милли спрей_спрей для расчесывания волос"},null,{"$f":"INDEX(A:A,(ROW(A103)-1)/3+1)","v":"Милли спрей_спрей для расчесывания волос"},null,"Милли спрей_спрей для расчесывания волос"]
[null,null,null,null,"Милли спрей_спрей для расчесывания волос",null,{"$f":"INDEX(A:A,FLOOR(ROW(A106)/3,1))","v":"Милли спрей_спрей для расчесывания волос"},null,{"$f":"INDEX(A:A,(ROW(A104)-1)/3+1)","v":"Милли спрей_спрей для расчесывания волос"},null,"Милли спрей_спрей для расчесывания волос"]
[null,null,null,null,"Милли спрей_спрей для расчесывания волос",null,{"$f":"INDEX(A:A,FLOOR(ROW(A107)/3,1))","v":"Милли спрей_спрей для расчесывания волос"},null,{"$f":"INDEX(A:A,(ROW(A105)-1)/3+1)","v":"Милли спрей_спрей для расчесывания волос"},null,"Милли спрей_спрей для расчесывания волос"]
[null,null,null,null,"Милли спрей_спрей для объема волос",null,{"$f":"INDEX(A:A,FLOOR(ROW(A108)/3,1))","v":"Милли спрей_спрей для объема волос"},null,{"$f":"INDEX(A:A,(ROW(A106)-1)/3+1)","v":"Милли спрей_спрей для объема волос"},null,"Милли спрей_спрей для объема волос"]
[null,null,null,null,"Милли спрей_спрей для объема волос",null,{"$f":"INDEX(A:A,FLOOR(ROW(A109)/3,1))","v":"Милли спрей_спрей для объема волос"},null,{"$f":"INDEX(A:A,(ROW(A107)-1)/3+1)","v":"Милли спрей_спрей для объема волос"},null,"Милли спрей_спрей для объема волос"]
[null,null,null,null,"Милли спрей_спрей для объема волос",null,{"$f":"INDEX(A:A,FLOOR(ROW(A110)/3,1))","v":"Милли спрей_спрей для объема волос"},null,{"$f":"INDEX(A:A,(ROW(A108)-1)/3+1)","v":"Милли спрей_спрей для объема волос"},null,"Милли спрей_спрей для объема волос"]
[null,null,null,null,"Милли спрей_спрей для волос термозащита",null,{"$f":"INDEX(A:A,FLOOR(ROW(A111)/3,1))","v":"Милли спрей_спрей для волос термозащита"},null,{"$f":"INDEX(A:A,(ROW(A109)-1)/3+1)","v":"Милли спрей_спрей для волос термозащита"},null,"Милли спрей_спрей для волос термозащита"]
[null,null,null,null,"Милли спрей_спрей для волос термозащита",null,{"$f":"INDEX(A:A,FLOOR(ROW(A112)/3,1))","v":"Милли спрей_спрей для волос термозащита"},null,{"$f":"INDEX(A:A,(ROW(A110)-1)/3+1)","v":"Милли спрей_спрей для волос термозащита"},null,"Милли спрей_спрей для волос термозащита"]
[null,null,null,null,"Милли спрей_спрей для волос термозащита",null,{"$f":"INDEX(A:A,FLOOR(ROW(A113)/3,1))","v":"Милли спрей_спрей для волос термозащита"},null,{"$f":"INDEX(A:A,(ROW(A111)-1)/3+1)","v":"Милли спрей_спрей для волос термозащита"},null,"Милли спрей_спрей для волос термозащита"]
[null,null,null,null,"Милли спрей_сыворотка спрей для волос",null,{"$f":"INDEX(A:A,FLOOR(ROW(A114)/3,1))","v":"Милли спрей_сыворотка спрей для волос"},null,{"$f":"INDEX(A:A,(ROW(A112)-1)/3+1)","v":"Милли спрей_сыворотка спрей для волос"},null,"Милли спрей_сыворотка спрей для волос"]
[null,null,null,null,"Милли спрей_сыворотка спрей для волос",null,{"$f":"INDEX(A:A,FLOOR(ROW(A115)/3,1))","v":"Милли спрей_сыворотка спрей для волос"},null,{"$f":"INDEX(A:A,(ROW(A113)-1)/3+1)","v":"Милли спрей_сыворотка спрей для волос"},null,"Милли спрей_сыворотка спрей для волос"]
[null,null,null,null,"Милли спрей_сыворотка спрей для волос",null,{"$f":"INDEX(A:A,FLOOR(ROW(A116)/3,1))","v":"Милли спрей_сыворотка спрей для волос"},null,{"$f":"INDEX(A:A,(ROW(A114)-1)/3+1)","v":"Милли спрей_сыворотка спрей для волос"},null,"Милли спрей_сыворотка спрей для волос"]
[null,null,null,null,"Милли спрей_спрей для роста волос",null,{"$f":"INDEX(A:A,FLOOR(ROW(A117)/3,1))","v":"Милли спрей_спрей для роста волос"},null,{"$f":"INDEX(A:A,(ROW(A115)-1)/3+1)","v":"Милли спрей_спрей для роста волос"},null,"Милли спрей_спрей для роста волос"]
[null,null,null,null,"Милли спрей_спрей для роста волос",null,{"$f":"INDEX(A:A,FLOOR(ROW(A118)/3,1))","v":"Милли спрей_спрей для роста волос"},null,{"$f":"INDEX(A:A,(ROW(A116)-1)/3+1)","v":"Милли спрей_спрей для роста волос"},null,"Милли спрей_спрей для роста волос"]
[null,null,null,null,"Милли спрей_спрей для роста волос",null,{"$f":"INDEX(A:A,FLOOR(ROW(A119)/3,1))","v":"Милли спрей_спрей для роста волос"},null,{"$f":"INDEX(A:A,(ROW(A117)-1)/3+1)","v":"Милли спрей_спрей для роста волос"},null,"Милли спрей_спрей для роста волос"]
[null,null,null,null,"Милли шампунь_шампунь глубокой очистки",null,{"$f":"INDEX(A:A,FLOOR(ROW(A120)/3,1))","v":"Милли шампунь_шампунь глубокой очистки"},null,{"$f":"INDEX(A:A,(ROW(A118)-1)/3+1)","v":"Милли шампунь_шампунь глубокой очистки"},null,"Милли шампунь_шампунь глубокой очистки"]
[null,null,null,null,"Милли шампунь_шампунь глубокой очистки",null,{"$f":"INDEX(A:A,FLOOR(ROW(A121)/3,1))","v":"Милли шампунь_шампунь глубокой очистки"},null,{"$f":"INDEX(A:A,(ROW(A119)-1)/3+1)","v":"Милли шампунь_шампунь глубокой очистки"},null,"Милли шампунь_шампунь глубокой очистки"]
[null,null,null,null,"Милли шампунь_шампунь глубокой очистки",null,{"$f":"INDEX(A:A,FLOOR(ROW(A122)/3,1))","v":"Милли шампунь_шампунь глубокой очистки"},null,{"$f":"INDEX(A:A,(ROW(A120)-1)/3+1)","v":"Милли шампунь_шампунь глубокой очистки"},null,"Милли шампунь_шампунь глубокой очистки"]
[null,null,null,null,"Милли шампунь_увлажняющий шампунь",null,{"$f":"INDEX(A:A,FLOOR(ROW(A123)/3,1))","v":"Милли шампунь_увлажняющий шампунь"},null,{"$f":"INDEX(A:A,(ROW(A121)-1)/3+1)","v":"Милли шампунь_увлажняющий шампунь"},null,"Милли шампунь_увлажняющий шампунь"]
[null,null,null,null,"Милли шампунь_увлажняющий шампунь",null,{"$f":"INDEX(A:A,FLOOR(ROW(A124)/3,1))","v":"Милли шампунь_увлажняющий шампунь"},null,{"$f":"INDEX(A:A,(ROW(A122)-1)/3+1)","v":"Милли шампунь_увлажняющий шампунь"},null,"Милли шампунь_увлажняющий шампунь"]
[null,null,null,null,"Милли шампунь_увлажняющий шампунь",null,{"$f":"INDEX(A:A,FLOOR(ROW(A125)/3,1))","v":"Милли шампунь_увлажняющий шампунь"},null,{"$f":"INDEX(A:A,(ROW(A123)-1)/3+1)","v":"Милли шампунь_увлажняющий шампунь"},null,"Милли шампунь_увлажняющий шампунь"]
[null,null,null,null,"Милли шампунь_бережный уход для волос",null,{"$f":"INDEX(A:A,FLOOR(ROW(A126)/3,1))","v":"Милли шампунь_бережный уход для волос"},null,{"$f":"INDEX(A:A,(ROW(A124)-1)/3+1)","v":"Милли шампунь_бережный уход для волос"},null,"Милли шампунь_бережный уход для волос"]
[null,null,null,null,"Милли шампунь_бережный уход для волос",null,{"$f":"INDEX(A:A,FLOOR(ROW(A127)/3,1))","v":"Милли шампунь_бережный уход для волос"},null,{"$f":"INDEX(A:A,(ROW(A125)-1)/3+1)","v":"Милли шампунь_бережный уход для волос"},null,"Милли шампунь_бережный уход для волос"]
[null,null,null,null,"Милли шампунь_бережный уход для волос",null,{"$f":"INDEX(A:A,FLOOR(ROW(A128)/3,1))","v":"Милли шампунь_бережный уход для волос"},null,{"$f":"INDEX(A:A,(ROW(A126)-1)/3+1)","v":"Милли шампунь_бережный уход для волос"},null,"Милли шампунь_бережный уход для волос"]
[null,null,null,null,"Милли шампунь_шампунь от сухости",null,{"$f":"INDEX(A:A,FLOOR(ROW(A129)/3,1))","v":"Милли шампунь_шампунь от сухости"},null,{"$f":"INDEX(A:A,(ROW(A127)-1)/3+1)","v":"Милли шампунь_шампунь от сухости"},null,"Милли шампунь_шампунь от сухости"]
[null,null,null,null,"Милли шампунь_шампунь от сухости",null,{"$f":"INDEX(A:A,FLOOR(ROW(A130)/3,1))","v":"Милли шампунь_шампунь от сухости"},null,{"$f":"INDEX(A:A,(ROW(A128)-1)/3+1)","v":"Милли шампунь_шампунь от сухости"},null,"Милли шампунь_шампунь от сухости"]
[null,null,null,null,"Милли шампунь_шампунь от сухости",null,{"$f":"INDEX(A:A,FLOOR(ROW(A131)/3,1))","v":"Милли шампунь_шампунь от сухости"},null,{"$f":"INDEX(A:A,(ROW(A129)-1)/3+1)","v":"Милли шампунь_шампунь от сухости"},null,"Милли шампунь_шампунь от сухости"]
[null,null,null,null,"Милли шампунь_шампунь для жирных волос",null,{"$f":"INDEX(A:A,FLOOR(ROW(A132)/3,1))","v":"Милли шампунь_шампунь для жирных волос"},null,{"$f":"INDEX(A:A,(ROW(A130)-1)/3+1)","v":"Милли шампунь_шампунь для жирных волос"},null,{"$f":"OFFSET($A$1,FLOOR((ROW()-1)/3,1),0)","v":"Милли шампунь_шампунь для жирных волос"}]
[null,null,null,null,"Милли шампунь_шампунь для жирных волос",null,{"$f":"INDEX(A:A,FLOOR(ROW(A133)/3,1))","v":"Милли шампунь_шампунь для жирных волос"},null,{"$f":"INDEX(A:A,(ROW(A131)-1)/3+1)","v":"Милли шампунь_шампунь для жирных волос"},null,"Милли шампунь_шампунь для жирных волос"]
[null,null,null,null,"Милли шампунь_шампунь для жирных волос",null,{"$f":"INDEX(A:A,FLOOR(ROW(A134)/3,1))","v":"Милли шампунь_шампунь для жирных волос"},null,{"$f":"INDEX(A:A,(ROW(A132)-1)/3+1)","v":"Милли шампунь_шампунь для жирных волос"},null,"Милли шампунь_шампунь для жирных волос"]
[null,null,null,null,"Шишки_Шишки",null,{"$f":"INDEX(A:A,FLOOR(ROW(A135)/3,1))","v":"Шишки_Шишки"},null,{"$f":"INDEX(A:A,(ROW(A133)-1)/3+1)","v":"Шишки_Шишки"},null,"Шишки_Шишки"]
[null,null,null,null,"Шишки_Шишки",null,{"$f":"INDEX(A:A,FLOOR(ROW(A136)/3,1))","v":"Шишки_Шишки"},null,{"$f":"INDEX(A:A,(ROW(A134)-1)/3+1)","v":"Шишки_Шишки"},null,"Шишки_Шишки"]
[null,null,null,null,"Шишки_Шишки",null,{"$f":"INDEX(A:A,FLOOR(ROW(A137)/3,1))","v":"Шишки_Шишки"},null,{"$f":"INDEX(A:A,(ROW(A135)-1)/3+1)","v":"Шишки_Шишки"},null,"Шишки_Шишки"]
[null,null,null,null,"Шишки_шишки для поделок",null,{"$f":"INDEX(A:A,FLOOR(ROW(A138)/3,1))","v":"Шишки_шишки для поделок"},null,{"$f":"INDEX(A:A,(ROW(A136)-1)/3+1)","v":"Шишки_шишки для поделок"},null,"Шишки_шишки для поделок"]
[null,null,null,null,"Шишки_шишки для поделок",null,{"$f":"INDEX(A:A,FLOOR(ROW(A139)/3,1))","v":"Шишки_шишки для поделок"},null,{"$f":"INDEX(A:A,(ROW(A137)-1)/3+1)","v":"Шишки_шишки для поделок"},null,"Шишки_шишки для поделок"]
[null,null,null,null,"Шишки_шишки для поделок",null,{"$f":"INDEX(A:A,FLOOR(ROW(A140)/3,1))","v":"Шишки_шишки для поделок"},null,{"$f":"INDEX(A:A,(ROW(A138)-1)/3+1)","v":"Шишки_шишки для поделок"},null,"Шишки_шишки для поделок"]
[null,null,null,null,"Шишки_для поделок материалы",null,{"$f":"INDEX(A:A,FLOOR(ROW(A141)/3,1))","v":"Шишки_для поделок материалы"},null,{"$f":"INDEX(A:A,(ROW(A139)-1)/3+1)","v":"Шишки_для поделок материалы"},null,"Шишки_для поделок материалы"]
[null,null,null,null,"Шишки_для поделок материалы",null,{"$f":"INDEX(A:A,FLOOR(ROW(A142)/3,1))","v":"Шишки_для поделок материалы"},null,{"$f":"INDEX(A:A,(ROW(A140)-1)/3+1)","v":"Шишки_для поделок материалы"},null,"Шишки_для поделок материалы"]
[null,null,null,null,"Шишки_для поделок материалы",null,{"$f":"INDEX(A:A,FLOOR(ROW(A143)/3,1))","v":"Шишки_для поделок материалы"},null,{"$f":"INDEX(A:A,(ROW(A141)-1)/3+1)","v":"Шишки_для поделок материалы"},null,"Шишки_для поделок материалы"]
[null,null,null,null,"Маска_маска для лица тканевая черная",null,{"$f":"INDEX(A:A,FLOOR(ROW(A144)/3,1))","v":"Маска_маска для лица тканевая черная"},null,{"$f":"INDEX(A:A,(ROW(A142)-1)/3+1)","v":"Маска_маска для лица тканевая черная"},null,"Маска_маска для лица тканевая черная"]
[null,null,null,null,"Маска_маска для лица тканевая черная",null,{"$f":"INDEX(A:A,FLOOR(ROW(A145)/3,1))","v":"Маска_маска для лица тканевая черная"},null,{"$f":"INDEX(A:A,(ROW(A143)-1)/3+1)","v":"Маска_маска для лица тканевая черная"},null,"Маска_маска для лица тканевая черная"]
[null,null,null,null,"Маска_маска для лица тканевая черная",null,{"$f":"INDEX(A:A,FLOOR(ROW(A146)/3,1))","v":"Маска_маска для лица тканевая черная"},null,{"$f":"INDEX(A:A,(ROW(A144)-1)/3+1)","v":"Маска_маска для лица тканевая черная"},null,"Маска_маска для лица тканевая черная"]
[null,null,null,null,"Маска_многоразовая тканевая маска",null,{"$f":"INDEX(A:A,FLOOR(ROW(A147)/3,1))","v":"Маска_многоразовая тканевая маска"},null,{"$f":"INDEX(A:A,(ROW(A145)-1)/3+1)","v":"Маска_многоразовая тканевая маска"},null,"Маска_многоразовая тканевая маска"]
[null,null,null,null,"Маска_многоразовая тканевая маска",null,{"$f":"INDEX(A:A,FLOOR(ROW(A148)/3,1))","v":"Маска_многоразовая тканевая маска"},null,{"$f":"INDEX(A:A,(ROW(A146)-1)/3+1)","v":"Маска_многоразовая тканевая маска"},null,"Маска_многоразовая тканевая маска"]
[null,null,null,null,"Маска_многоразовая тканевая маска",null,{"$f":"INDEX(A:A,FLOOR(ROW(A149)/3,1))","v":"Маска_многоразовая тканевая маска"},null,{"$f":"INDEX(A:A,(ROW(A147)-1)/3+1)","v":"Маска_многоразовая тканевая маска"},null,"Маска_многоразовая тканевая маска"]
[null,null,null,null,"Маска_маска защитная тканевая",null,{"$f":"INDEX(A:A,FLOOR(ROW(A150)/3,1))","v":"Маска_маска защитная тканевая"},null,{"$f":"INDEX(A:A,(ROW(A148)-1)/3+1)","v":"Маска_маска защитная тканевая"},null,"Маска_маска защитная тканевая"]
[null,null,null,null,"Маска_маска защитная тканевая",null,{"$f":"INDEX(A:A,FLOOR(ROW(A151)/3,1))","v":"Маска_маска защитная тканевая"},null,{"$f":"INDEX(A:A,(ROW(A149)-1)/3+1)","v":"Маска_маска защитная тканевая"},null,"Маска_маска защитная тканевая"]
[null,null,null,null,"Маска_маска защитная тканевая",null,{"$f":"INDEX(A:A,FLOOR(ROW(A152)/3,1))","v":"Маска_маска защитная тканевая"},null,{"$f":"INDEX(A:A,(ROW(A150)-1)/3+1)","v":"Маска_маска защитная тканевая"},null,"Маска_маска защитная тканевая"]
[null,null,null,null,"Маска_маска тканевая для лица защитная",null,{"$f":"INDEX(A:A,FLOOR(ROW(A153)/3,1))","v":"Маска_маска тканевая для лица защитная"},null,{"$f":"INDEX(A:A,(ROW(A151)-1)/3+1)","v":"Маска_маска тканевая для лица защитная"},null,"Маска_маска тканевая для лица защитная"]
[null,null,null,null,"Маска_маска тканевая для лица защитная",null,{"$f":"INDEX(A:A,FLOOR(ROW(A154)/3,1))","v":"Маска_маска тканевая для лица защитная"},null,{"$f":"INDEX(A:A,(ROW(A152)-1)/3+1)","v":"Маска_маска тканевая для лица защитная"},null,"Маска_маска тканевая для лица защитная"]
[null,null,null,null,"Маска_маска тканевая для лица защитная",null,{"$f":"INDEX(A:A,FLOOR(ROW(A155)/3,1))","v":"Маска_маска тканевая для лица защитная"},null,{"$f":"INDEX(A:A,(ROW(A153)-1)/3+1)","v":"Маска_маска тканевая для лица защитная"},null,"Маска_маска тканевая для лица защитная"]
[null,null,null,null,"Маска_маска черная многоразовая",null,{"$f":"INDEX(A:A,FLOOR(ROW(A156)/3,1))","v":"Маска_маска черная многоразовая"},null,{"$f":"INDEX(A:A,(ROW(A154)-1)/3+1)","v":"Маска_маска черная многоразовая"},null,"Маска_маска черная многоразовая"]
[null,null,null,null,"Маска_маска черная многоразовая",null,{"$f":"INDEX(A:A,FLOOR(ROW(A157)/3,1))","v":"Маска_маска черная многоразовая"},null,{"$f":"INDEX(A:A,(ROW(A155)-1)/3+1)","v":"Маска_маска черная многоразовая"},null,"Маска_маска черная многоразовая"]
[null,null,null,null,"Маска_маска черная многоразовая",null,{"$f":"INDEX(A:A,FLOOR(ROW(A158)/3,1))","v":"Маска_маска черная многоразовая"},null,{"$f":"INDEX(A:A,(ROW(A156)-1)/3+1)","v":"Маска_маска черная многоразовая"},null,"Маска_маска черная многоразовая"]
[null,null,null,null,"Маска_маска одноразовая черная",null,{"$f":"INDEX(A:A,FLOOR(ROW(A159)/3,1))","v":"Маска_маска одноразовая черная"},null,{"$f":"INDEX(A:A,(ROW(A157)-1)/3+1)","v":"Маска_маска одноразовая черная"},null,"Маска_маска одноразовая черная"]
[null,null,null,null,"Маска_маска одноразовая черная",null,{"$f":"INDEX(A:A,FLOOR(ROW(A160)/3,1))","v":"Маска_маска одноразовая черная"},null,{"$f":"INDEX(A:A,(ROW(A158)-1)/3+1)","v":"Маска_маска одноразовая черная"},null,"Маска_маска одноразовая черная"]
[null,null,null,null,"Маска_маска одноразовая черная",null,{"$f":"INDEX(A:A,FLOOR(ROW(A161)/3,1))","v":"Маска_маска одноразовая черная"},null,{"$f":"INDEX(A:A,(ROW(A159)-1)/3+1)","v":"Маска_маска одноразовая черная"},null,"Маска_маска одноразовая черная"]
[null,null,null,null,"Маска_повязка с серебром",null,{"$f":"INDEX(A:A,FLOOR(ROW(A162)/3,1))","v":"Маска_повязка с серебром"},null,{"$f":"INDEX(A:A,(ROW(A160)-1)/3+1)","v":"Маска_повязка с серебром"},null,"Маска_повязка с серебром"]
[null,null,null,null,"Маска_повязка с серебром",null,{"$f":"INDEX(A:A,FLOOR(ROW(A163)/3,1))","v":"Маска_повязка с серебром"},null,{"$f":"INDEX(A:A,(ROW(A161)-1)/3+1)","v":"Маска_повязка с серебром"},null,"Маска_повязка с серебром"]
[null,null,null,null,"Маска_повязка с серебром",null,{"$f":"INDEX(A:A,FLOOR(ROW(A164)/3,1))","v":"Маска_повязка с серебром"},null,{"$f":"INDEX(A:A,(ROW(A162)-1)/3+1)","v":"Маска_повязка с серебром"},null,"Маска_повязка с серебром"]
[null,null,null,null,"Маска_повязка на лицо черная",null,{"$f":"INDEX(A:A,FLOOR(ROW(A165)/3,1))","v":"Маска_повязка на лицо черная"},null,{"$f":"INDEX(A:A,(ROW(A163)-1)/3+1)","v":"Маска_повязка на лицо черная"},null,"Маска_повязка на лицо черная"]
[null,null,null,null,"Маска_повязка на лицо черная",null,{"$f":"INDEX(A:A,FLOOR(ROW(A166)/3,1))","v":"Маска_повязка на лицо черная"},null,{"$f":"INDEX(A:A,(ROW(A164)-1)/3+1)","v":"Маска_повязка на лицо черная"},null,"Маска_повязка на лицо черная"]
[null,null,null,null,"Маска_повязка на лицо черная",null,{"$f":"INDEX(A:A,FLOOR(ROW(A167)/3,1))","v":"Маска_повязка на лицо черная"},null,{"$f":"INDEX(A:A,(ROW(A165)-1)/3+1)","v":"Маска_повязка на лицо черная"},null,"Маска_повязка на лицо черная"]